fUST/lending_fUST_20240409
["ID","MTS","AMOUNT","RATE_DAILY","PERIOD"]
[321961700,1712651457229,-151.0,0.00038205,2]
[321961702,1712651457242,-151.0,0.00038205,2]
[321961704,1712651457256,-151.0,0.00038205,2]
[321961706,1712651457268,-160.189686,0.00038205,2]
[321961709,1712651457281,-413.668107,0.00038205,2]
[321961711,1712651457294,-413.668107,0.00038205,2]
[321961713,1712651457306,-413.668107,0.00038205,2]
[321961715,1712651457319,-413.668107,0.00038205,2]
[321961717,1712651457332,-413.668107,0.00038205,2]
[321961719,1712651457344,-413.668107,0.00038205,2]
[321961722,1712651457356,-413.668107,0.00038205,2]
[321961724,1712651457369,-413.668107,0.00038205,2]
[321961726,1712651457381,-413.668107,0.00038205,2]
[321961728,1712651457393,-413.668107,0.00038205,2]
[321961730,1712651457405,-413.668107,0.00038205,2]
[321961733,1712651457418,-413.668107,0.00038205,2]
[321961735,1712651457430,-413.668107,0.00038205,2]
[321961737,1712651457442,-413.668107,0.00038205,2]
[321961739,1712651457454,-413.668107,0.00038205,2]
[321961741,1712651457467,-413.668107,0.00038205,2]
[321961744,1712651457480,-151.0,0.00038205,2]
[321961746,1712651457494,-215.644421,0.00038205,2]
[321961748,1712651457506,-215.644421,0.00038205,2]
[321961750,1712651457518,-215.644421,0.00038205,2]
[321961752,1712651457531,-215.644421,0.00038205,2]
[321961754,1712651457544,-215.644421,0.00038205,2]
[321961757,1712651457557,-215.644421,0.00038205,2]
[321961759,1712651457569,-215.644421,0.00038205,2]
[321961761,1712651457581,-215.644421,0.00038205,2]
[321961763,1712651457593,-215.644421,0.00038205,2]
[321961765,1712651457605,-215.644421,0.00038205,2]
[321961767,1712651457618,-215.644421,0.00038205,2]
[321961770,1712651457630,-215.644421,0.00038205,2]
[321961772,1712651457643,-215.644421,0.00038205,2]
[321961774,1712651457656,-215.644421,0.00038205,2]
[321961776,1712651457668,-215.644421,0.00038205,2]
[321961778,1712651457680,-215.644421,0.00038205,2]
[321961780,1712651457693,-151.0,0.00038205,2]
[321961783,1712651457706,-151.0,0.00038205,2]
[321961785,1712651457719,-151.0,0.00038205,2]
[321961787,1712651457733,-151.0,0.00038205,2]
[321961789,1712651457743,-151.0,0.00038205,2]
[321961791,1712651457753,-151.0,0.00038205,2]
[321961793,1712651457762,-279.216208,0.00038205,2]
[321961795,1712651457771,-500.0,0.00038209,30]
[321961797,1712651457780,-223.78207718,0.00038209,30]
[321961798,1712651457790,-2000.0,0.0003821,17]
[321961800,1712651457800,-2000.0,0.0003822,17]
[321961802,1712651457810,-2000.0,0.0003823,17]
[321961815,1712651457946,-3142759.02322237,0.00038235,60]
[321961845,1712651458264,-384.55927108,0.00034601,7]
[321961846,1712651458276,-500.0,0.00035616,2]
[321961847,1712651458285,-500.0,0.00035616,2]
[321961848,1712651458294,-253.46233178,0.00035671,4]
[321961849,1712651458304,-500.0,0.00035672,5]
[321961850,1712651458313,-190.39462141,0.00035672,5]
[321961851,1712651458323,-500.0,0.0003589,5]
[321961852,1712651458332,-500.0,0.00035946,5]
[321961853,1712651458342,-500.0,0.00036164,5]
[321961854,1712651458351,-500.0,0.0003622,5]
[321961855,1712651458361,-500.0,0.00036438,5]
[321961856,1712651458370,-500.0,0.00036494,5]
[321961857,1712651458379,-500.0,0.00036712,5]
[321961858,1712651458388,-500.0,0.00036768,5]
[321961859,1712651458398,-500.0,0.00036986,5]
[321961860,1712651458407,-500.0,0.0003726,5]
[321961861,1712651458416,-320.81193934,0.00037534,5]
[321961862,1712651458425,-500.0,0.00037864,5]
[321961863,1712651458435,-210.29207057,0.00038138,5]
[321961864,1712651458445,-125502.07780191,0.00038235,60]
[321962756,1712652434159,-165.215788,0.00027397,2]
[321962757,1712652434180,-400.0,0.00031924,2]
[321962758,1712652434199,-400.0,0.00031924,2]
[321962759,1712652434220,-696.92492428,0.00031925,4]
[321962760,1712652437100,-364.70816219,0.00031923,4]
[321962761,1712652447116,-802.00147016,0.00031923,4]
[321962762,1712652447136,-1846.75329108,0.00031925,4]
[321962766,1712652592460,474.06806453,0.00026,7]
[321962767,1712652592502,12078.6923015,0.00026,7]
[321962824,1712652632184,-681.1628363,0.00029825,2]
[321962825,1712652632194,-917.216237,0.00031072,2]
[321962826,1712652632204,-454.79628215,0.00031826,5]
[321962827,1712652632214,-1013.10269998,0.00031925,4]
[321962828,1712652632224,-156.5090987,0.00031927,2]
[321962829,1712652632233,-250.0,0.0003251,2]
[321962830,1712652632243,-400.0,0.00032626,2]
[321962831,1712652632252,-250.0,0.00032626,2]
[321962832,1712652632266,-2208.51897695,0.00032627,4]
[321962863,1712652637819,-23501.39426281,0.00032627,4]
[321962865,1712652637828,-1190.48002308,0.00032628,2]
[321962868,1712652637934,-23709.51997692,0.00032628,2]
[321962870,1712652637944,-454.79628212,0.0003272,6]
[321962872,1712652637954,-166.666666,0.00032877,2]
[321962874,1712652637964,-1272.37103576,0.00033,4]
[321962876,1712652637973,-180.408073,0.00033028,2]
[321962878,1712652637983,-454.79628212,0.00033614,6]
[321962880,1712652637994,-166.666666,0.00033646,2]
[321962882,1712652638003,-846.44820607,0.00034354,4]
[321962884,1712652638015,-166.666666,0.00034415,2]
[321962886,1712652638025,-454.79628212,0.00034508,7]
[321962887,1712652638035,-681.1628363,0.00034825,2]
[321962889,1712652638045,-156.29039151,0.00035,7]
[321962891,1712652638055,-166.666666,0.00035185,2]
[321962893,1712652638065,-454.79628212,0.00035402,7]
[321962895,1712652638076,-280.82157612,0.000356,25]
[321962898,1712652638085,-253.46233178,0.00035614,4]
[321962899,1712652638095,-155.56708048,0.00035614,4]
[321962901,1712652638104,-530.19178331,0.00035614,4]
[321962903,1712652638113,-1131.94892897,0.00035614,4]
[321962905,1712652638123,-1944.59219774,0.00035614,4]
[321962907,1712652638132,-698.07663535,0.00035614,4]
[321962909,1712652638141,-193.0126642,0.00035614,4]
[321962911,1712652638151,-2211.19481704,0.00035614,4]
[321962913,1712652638160,-338.16371369,0.00035614,7]
[321962915,1712652638170,-179.48021003,0.00035614,4]
[321962917,1712652638178,-371.98712946,0.00035614,4]
[321962919,1712652638187,-384.93625314,0.00035614,4]
[321962921,1712652638196,-151.0,0.00035615,2]
[321962923,1712652638204,-151.0,0.00035615,2]
[321962925,1712652638214,-151.0,0.00035615,2]
[321962927,1712652638223,-151.0,0.00035615,2]
[321962928,1712652638232,-146601.05217755,0.00035616,3]
[321962931,1712652638241,-500.0,0.00035616,2]
[321962933,1712652638250,-500.0,0.00035616,2]
[321962934,1712652638259,-500.0,0.00035616,2]
[321962936,1712652638268,-535.46711863,0.00035616,2]
[321962937,1712652638277,-501.97133587,0.00035616,30]
[321962938,1712652638286,-500.0,0.00035616,2]
[321962939,1712652638295,-500.0,0.00035616,2]
[321962940,1712652638304,-500.0,0.00035616,2]
[321962941,1712652638313,-500.0,0.00035616,2]
[321962942,1712652638323,-500.0,0.00035616,2]
[321962943,1712652638332,-500.0,0.00035616,2]
[321962944,1712652638341,-500.0,0.00035616,2]
[321962945,1712652638350,-500.0,0.00035616,2]
[321962946,1712652638359,-500.0,0.00035616,2]
[321962947,1712652638368,-500.0,0.00035616,2]
[321962948,1712652638377,-755.82,0.00035616,2]
[321962949,1712652638386,-500.0,0.00035616,2]
[321962950,1712652638395,-500.0,0.00035616,2]
[321962951,1712652638403,-500.0,0.00035616,2]
[321962952,1712652638412,-151.0,0.00035616,2]
[321962953,1712652638421,-500.0,0.00035616,2]
[321962954,1712652638431,-500.0,0.00035616,2]
[321962956,1712652638440,-500.0,0.00035616,2]
[321962957,1712652638448,-345.13369233,0.00035616,2]
[321962959,1712652638458,-600.0,0.00035616,2]
[321962961,1712652638467,-164.1480007,0.00035616,2]
[321962963,1712652638476,-500.0,0.00035616,2]
[321962964,1712652638485,-500.0,0.00035616,2]
[321962965,1712652638497,-500.0,0.00035616,2]
[321962966,1712652638506,-500.0,0.00035616,2]
[321962967,1712652638517,-500.0,0.00035616,2]
[321962968,1712652638526,-500.0,0.00035616,2]
[321962969,1712652638536,-500.0,0.00035616,2]
[321962970,1712652638545,-464.89606735,0.00035616,2]
[321962971,1712652638554,-500.0,0.00035616,2]
[321962972,1712652638563,-500.0,0.00035616,2]
[321962973,1712652638576,-500.0,0.00035616,2]
[321962974,1712652638585,-500.0,0.00035616,2]
[321962975,1712652638595,-500.0,0.00035616,2]
[321962976,1712652638605,-545.82,0.00035616,2]
[321962977,1712652638614,-500.0,0.00035616,2]
[321962978,1712652638623,-500.0,0.00035616,2]
[321962979,1712652638634,-500.0,0.00035616,2]
[321962980,1712652638643,-500.0,0.00035616,2]
[321962981,1712652638653,-500.0,0.00035616,2]
[321962982,1712652638662,-227.19255023,0.00035616,2]
[321962983,1712652638671,-501.01374739,0.00035616,2]
[321962984,1712652638680,-500.0,0.00035616,2]
[321962985,1712652638689,-500.0,0.00035616,2]
[321962986,1712652638698,-500.0,0.00035616,2]
[321962987,1712652638707,-500.71028346,0.00035616,2]
[321962988,1712652638717,-500.0,0.00035616,2]
[321962989,1712652638727,-500.0,0.00035616,2]
[321962990,1712652638736,-1264.68,0.00035616,2]
[321962991,1712652638745,-500.0,0.00035616,2]
[321962992,1712652638755,-500.0,0.00035616,2]
[321962993,1712652638765,-500.0,0.00035616,2]
[321962994,1712652638775,-500.0,0.00035616,2]
[321962995,1712652638784,-500.0,0.00035616,2]
[321962996,1712652638794,-500.0,0.00035616,2]
[321962997,1712652638803,-500.0,0.00035616,2]
[321962998,1712652638813,-500.0,0.00035616,2]
[321962999,1712652638822,-500.0,0.00035616,2]
[321963000,1712652638832,-500.0,0.00035616,2]
[321963001,1712652638841,-500.0,0.00035616,2]
[321963002,1712652638850,-500.0,0.00035616,2]
[321963003,1712652638859,-163.97379358,0.00035616,2]
[321963004,1712652638868,-500.0,0.00035616,2]
[321963005,1712652638878,-225.49441251,0.00035616,2]
[321963006,1712652638887,-500.0,0.00035616,14]
[321963007,1712652638896,-500.0,0.00035616,2]
[321963008,1712652638905,-500.0,0.00035616,2]
[321963009,1712652638915,-153.20965356,0.00035616,2]
[321963010,1712652638923,-500.0,0.00035616,2]
[321963011,1712652638932,-500.0,0.00035616,2]
[321963012,1712652638948,-500.0,0.00035616,2]
[321963013,1712652638962,-500.0,0.00035616,2]
[321963014,1712652638972,-500.0,0.00035616,2]
[321963015,1712652638982,-500.0,0.00035616,2]
[321963016,1712652638992,-502.44818286,0.00035616,2]
[321963017,1712652639001,-500.0,0.00035616,2]
[321963018,1712652639011,-500.0,0.00035616,2]
[321963019,1712652639021,-589.28,0.00035616,2]
[321963020,1712652639031,-500.0,0.00035616,2]
[321963021,1712652639041,-500.0,0.00035616,2]
[321963022,1712652639051,-500.0,0.00035616,2]
[321963023,1712652639060,-500.0,0.00035616,2]
[321963024,1712652639069,-541.17,0.00035616,2]
[321963025,1712652639079,-500.0,0.00035616,2]
[321963028,1712652639241,-1195.63,0.00035616,2]
[321963029,1712652639251,-500.0,0.00035616,2]
[321963030,1712652639261,-500.0,0.00035616,2]
[321963031,1712652639269,-500.0,0.00035616,2]
[321963033,1712652639278,-500.0,0.00035616,2]
[321963035,1712652639287,-500.0,0.00035616,2]
[321963036,1712652639296,-500.0,0.00035616,2]
[321963038,1712652639305,-500.0,0.00035616,2]
[321963040,1712652639314,-500.0,0.00035616,2]
[321963042,1712652639323,-500.0,0.00035616,2]
[321963045,1712652639333,-980.41,0.00035616,2]
[321963047,1712652639342,-500.0,0.00035616,2]
[321963049,1712652639351,-500.0,0.00035616,2]
[321963051,1712652639360,-592.57,0.00035616,2]
[321963053,1712652639370,-501.72300528,0.00035616,2]
[321963055,1712652639379,-501.00546119,0.00035616,2]
[321963057,1712652639388,-674.37,0.00035616,2]
[321963058,1712652639399,-500.0,0.00035616,2]
[321963059,1712652639409,-1817.49,0.00035616,2]
[321963060,1712652639420,-500.0,0.00035616,2]
[321963061,1712652639429,-500.0,0.00035616,2]
[321963062,1712652639439,-500.0,0.00035616,2]
[321963064,1712652639448,-500.0,0.00035616,2]
[321963065,1712652639458,-693.28,0.00035616,2]
[321963067,1712652639468,-500.0,0.00035616,2]
[321963069,1712652639478,-500.0,0.00035616,2]
[321963071,1712652639488,-500.0,0.00035616,2]
[321963073,1712652639498,-500.0,0.00035616,2]
[321963074,1712652639507,-500.0,0.00035616,2]
[321963076,1712652639518,-500.0,0.00035616,2]
[321963078,1712652639527,-500.0,0.00035616,2]
[321963080,1712652639536,-500.0,0.00035616,2]
[321963082,1712652639546,-500.0,0.00035616,2]
[321963084,1712652639556,-500.0,0.00035616,2]
[321963086,1712652639566,-500.0,0.00035616,2]
[321963088,1712652639576,-500.0,0.00035616,2]
[321963089,1712652639585,-196.280638,0.00035616,2]
[321963091,1712652639594,-500.0,0.00035616,2]
[321963093,1712652639604,-500.0,0.00035616,2]
[321963095,1712652639613,-500.91291952,0.00035616,2]
[321963097,1712652639623,-500.0,0.00035616,2]
[321963099,1712652639632,-500.0,0.00035616,2]
[321963101,1712652639640,-500.0,0.00035616,2]
[321963102,1712652639650,-500.0,0.00035616,2]
[321963104,1712652639659,-500.0,0.00035616,2]
[321963106,1712652639668,-500.83738763,0.00035616,2]
[321963108,1712652639677,-190.39462141,0.00035616,2]
[321963110,1712652639686,-500.0,0.00035616,2]
[321963112,1712652639696,-1410.81,0.00035616,2]
[321963114,1712652639705,-500.0,0.00035616,2]
[321963115,1712652639714,-500.0,0.00035616,2]
[321963117,1712652639723,-500.0,0.00035616,2]
[321963119,1712652639732,-500.0,0.00035616,2]
[321963121,1712652639741,-510.78363155,0.00035616,2]
[321963123,1712652639750,-500.0,0.00035616,2]
[321963125,1712652639760,-212.30960521,0.00035616,2]
[321963127,1712652639769,-500.0,0.00035616,2]
[321963128,1712652639778,-500.93752798,0.00035616,2]
[321963130,1712652639787,-500.0,0.00035616,2]
[321963132,1712652639797,-500.87623615,0.00035616,2]
[321963134,1712652639807,-500.0,0.00035616,2]
[321963136,1712652639816,-500.0,0.00035616,2]
[321963138,1712652639826,-500.0,0.00035616,2]
[321963140,1712652639835,-500.0,0.00035616,2]
[321963142,1712652639845,-500.0,0.00035616,2]
[321963144,1712652639856,-500.0,0.00035616,2]
[321963145,1712652639865,-500.0,0.00035616,2]
[321963147,1712652639874,-500.0,0.00035616,2]
[321963149,1712652639883,-500.0,0.00035616,2]
[321963151,1712652639893,-500.0,0.00035616,2]
[321963153,1712652639902,-500.0,0.00035616,2]
[321963156,1712652639911,-501.0977312,0.00035616,2]
[321963158,1712652639920,-500.0,0.00035616,2]
[321963161,1712652639929,-500.0,0.00035616,2]
[321963163,1712652639939,-500.0,0.00035616,2]
[321963164,1712652639948,-500.0,0.00035616,2]
[321963166,1712652639958,-500.0,0.00035616,2]
[321963168,1712652639967,-500.0,0.00035616,2]
[321963170,1712652639976,-500.0,0.00035616,2]
[321963172,1712652639985,-220.13815965,0.00035616,2]
[321963174,1712652639994,-500.0,0.00035616,2]
[321963176,1712652640003,-500.0,0.00035616,2]
[321963178,1712652640013,-500.0,0.00035616,2]
[321963179,1712652640022,-500.0,0.00035616,2]
[321963181,1712652640032,-536.11,0.00035616,2]
[321963183,1712652640041,-321.83237999,0.00035616,2]
[321963185,1712652640051,-501.93927738,0.00035616,2]
[321963187,1712652640060,-481.43901605,0.00035616,2]
[321963189,1712652640069,-500.0,0.00035616,2]
[321963191,1712652640079,-500.0,0.00035616,2]
[321963193,1712652640088,-236.6693551,0.00035616,2]
[321963195,1712652640097,-508.18434058,0.00035616,2]
[321963197,1712652640106,-500.0,0.00035616,2]
[321963199,1712652640115,-500.89236074,0.00035616,2]
[321963201,1712652640124,-172.4328642,0.00035616,2]
[321963202,1712652640134,-500.0,0.00035616,2]
[321963204,1712652640143,-500.0,0.00035616,2]
[321963206,1712652640152,-504.04639624,0.00035616,2]
[321963208,1712652640162,-500.0,0.00035616,2]
[321963210,1712652640171,-500.0,0.00035616,2]
[321963212,1712652640181,-500.0,0.00035616,2]
[321963214,1712652640190,-200.25216823,0.00035616,2]
[321963216,1712652640200,-500.0,0.00035616,2]
[321963218,1712652640208,-500.0,0.00035616,2]
[321963219,1712652640218,-500.79271676,0.00035616,2]
[321963221,1712652640227,-500.0,0.00035616,2]
[321963223,1712652640236,-500.0,0.00035616,2]
[321963225,1712652640246,-500.0,0.00035616,2]
[321963227,1712652640255,-500.82789157,0.00035616,2]
[321963229,1712652640265,-714.25,0.00035616,2]
[321963231,1712652640274,-500.0,0.00035616,2]
[321963233,1712652640284,-500.0,0.00035616,2]
[321963235,1712652640293,-500.77111735,0.00035616,2]
[321963236,1712652640302,-500.0,0.00035616,2]
[321963238,1712652640311,-513.55991851,0.00035616,2]
[321963240,1712652640320,-308.75985958,0.00035616,2]
[321963242,1712652640329,-500.0,0.00035616,2]
[321963244,1712652640342,-837.71,0.00035616,2]
[321963247,1712652640355,-500.0,0.00035616,2]
[321963249,1712652640369,-500.71127483,0.00035616,2]
[321963251,1712652640381,-500.0,0.00035616,2]
[321963253,1712652640393,-500.0,0.00035616,2]
[321963255,1712652640404,-2343.31,0.00035616,2]
[321963258,1712652640415,-500.0,0.00035616,2]
[321963260,1712652640427,-470.73586514,0.00035616,2]
[321963262,1712652640439,-1131.43,0.00035616,2]
[321963264,1712652640453,-500.0,0.00035616,2]
[321963266,1712652640465,-501.01914115,0.00035616,2]
[321963269,1712652640478,-500.0,0.00035616,2]
[321963271,1712652640490,-500.0,0.00035616,2]
[321963273,1712652640503,-469.63912323,0.00035616,2]
[321963275,1712652640514,-504.67559332,0.00035616,2]
[321963277,1712652640524,-501.80694902,0.00035616,2]
[321963279,1712652640537,-1639.89,0.00035616,2]
[321963281,1712652640549,-1100.77,0.00035616,2]
[321963283,1712652640561,-5114.54,0.00035616,2]
[321963285,1712652640573,-500.0,0.00035616,2]
[321963288,1712652640586,-500.0,0.00035616,2]
[321963290,1712652640597,-708.72,0.00035616,2]
[321963292,1712652640610,-500.0,0.00035616,2]
[321963294,1712652640621,-500.0,0.00035616,2]
[321963296,1712652640631,-500.0,0.00035616,2]
[321963298,1712652640641,-4344.59,0.00035616,2]
[321963300,1712652640654,-500.0,0.00035616,2]
[321963302,1712652640666,-2367.47,0.00035616,2]
[321963305,1712652640677,-500.0,0.00035616,2]
[321963307,1712652640689,-500.0,0.00035616,2]
[321963309,1712652640700,-500.0,0.00035616,2]
[321963311,1712652640711,-500.0,0.00035616,2]
[321963313,1712652640722,-501.66027574,0.00035616,2]
[321963315,1712652640733,-500.0,0.00035616,2]
[321963317,1712652640745,-500.0,0.00035616,2]
[321963319,1712652640757,-196.89106982,0.00035616,2]
[321963322,1712652640770,-500.0,0.00035616,2]
[321963324,1712652640782,-1083.07,0.00035616,2]
[321963326,1712652640794,-500.0,0.00035616,2]
[321963328,1712652640806,-500.0,0.00035616,2]
[321963330,1712652640819,-500.0,0.00035616,2]
[321963333,1712652640831,-500.87774121,0.00035616,2]
[321963335,1712652640841,-375.68274984,0.00035616,2]
[321963337,1712652640851,-500.0,0.00035616,2]
[321963339,1712652640861,-642.31,0.00035616,2]
[321963341,1712652640871,-500.0,0.00035616,2]
[321963343,1712652640882,-500.0,0.00035616,2]
[321963345,1712652640894,-500.0,0.00035616,2]
[321963347,1712652640905,-500.0,0.00035616,2]
[321963349,1712652640916,-500.0,0.00035616,2]
[321963351,1712652640928,-502.23267166,0.00035616,2]
[321963353,1712652640939,-500.0,0.00035616,2]
[321963355,1712652640950,-1398.67,0.00035616,2]
[321963358,1712652640960,-500.0,0.00035616,2]
[321963360,1712652640971,-500.0,0.00035616,2]
[321963362,1712652640982,-500.0,0.00035616,2]
[321963364,1712652640992,-500.0,0.00035616,2]
[321963366,1712652641002,-500.0,0.00035616,2]
[321963368,1712652641013,-507.76012777,0.00035616,2]
[321963370,1712652641023,-1326.14,0.00035616,2]
[321963372,1712652641034,-500.0,0.00035616,2]
[321963374,1712652641045,-500.0,0.00035616,2]
[321963376,1712652641057,-500.0,0.00035616,2]
[321963378,1712652641068,-2600.89,0.00035616,2]
[321963380,1712652641079,-1734.85,0.00035616,2]
[321963382,1712652641090,-500.0,0.00035616,2]
[321963384,1712652641101,-632.35,0.00035616,2]
[321963386,1712652641113,-500.0,0.00035616,2]
[321963388,1712652641123,-500.0,0.00035616,2]
[321963391,1712652641135,-500.0,0.00035616,2]
[321963393,1712652641145,-500.0,0.00035616,2]
[321963395,1712652641155,-500.0,0.00035616,2]
[321963397,1712652641167,-500.0,0.00035616,2]
[321963399,1712652641178,-500.0,0.00035616,2]
[321963401,1712652641190,-500.0,0.00035616,2]
[321963403,1712652641200,-500.0,0.00035616,2]
[321963405,1712652641211,-2180.89,0.00035616,2]
[321963407,1712652641223,-500.0,0.00035616,2]
[321963409,1712652641234,-921.5,0.00035616,2]
[321963411,1712652641245,-536.35467801,0.00035616,2]
[321963413,1712652641256,-500.0,0.00035616,2]
[321963415,1712652641268,-500.0,0.00035616,2]
[321963417,1712652641279,-1453.32,0.00035616,2]
[321963419,1712652641290,-500.0,0.00035616,2]
[321963421,1712652641300,-1312.27,0.00035616,2]
[321963424,1712652641313,-500.0,0.00035616,2]
[321963425,1712652641323,-500.0,0.00035616,2]
[321963426,1712652641334,-500.0,0.00035616,2]
[321963427,1712652641344,-500.0,0.00035616,2]
[321963428,1712652641355,-1572.55,0.00035616,2]
[321963429,1712652641365,-538.13,0.00035616,2]
[321963430,1712652641375,-500.0,0.00035616,2]
[321963431,1712652641386,-500.0,0.00035616,2]
[321963432,1712652641396,-500.0,0.00035616,2]
[321963433,1712652641406,-500.0,0.00035616,2]
[321963434,1712652641416,-500.0,0.00035616,2]
[321963435,1712652641427,-500.0,0.00035616,2]
[321963436,1712652641437,-500.0,0.00035616,2]
[321963437,1712652641447,-500.0,0.00035616,2]
[321963438,1712652641458,-500.0,0.00035616,2]
[321963439,1712652641467,-1634.68,0.00035616,2]
[321963440,1712652641478,-500.0,0.00035616,2]
[321963441,1712652641491,-500.0,0.00035616,2]
[321963442,1712652641501,-534.11755053,0.00035616,2]
[321963443,1712652641512,-500.0,0.00035616,2]
[321963444,1712652641523,-542.98,0.00035616,2]
[321963445,1712652641533,-500.0,0.00035616,2]
[321963446,1712652641544,-585.2318823,0.00035616,2]
[321963447,1712652641554,-500.0,0.00035616,2]
[321963448,1712652641566,-16504.58,0.00035616,2]
[321963449,1712652641578,-500.0,0.00035616,2]
[321963450,1712652641588,-578.42139183,0.00035616,2]
[321963451,1712652641599,-500.0,0.00035616,2]
[321963452,1712652641610,-374.5924307,0.00035616,2]
[321963453,1712652641621,-12715.56,0.00035616,2]
[321963454,1712652641631,-300.0,0.00035616,2]
[321963455,1712652641783,-502.58820334,0.00035616,2]
[321963456,1712652641798,-1000.0,0.00035616,2]
[321963457,1712652641807,-500.0,0.00035616,2]
[321963458,1712652641816,-500.0,0.00035616,2]
[321963459,1712652641825,-500.0,0.00035616,2]
[321963460,1712652641834,-500.0,0.00035616,2]
[321963461,1712652641842,-500.0,0.00035616,2]
[321963462,1712652641851,-500.0,0.00035616,2]
[321963463,1712652641860,-1057.64,0.00035616,2]
[321963464,1712652641869,-500.0,0.00035616,2]
[321963465,1712652641877,-500.0,0.00035616,2]
[321963466,1712652641886,-500.77374777,0.00035616,2]
[321963467,1712652641894,-500.0,0.00035616,2]
[321963468,1712652641903,-500.0,0.00035616,2]
[321963469,1712652641912,-3229.27,0.00035616,2]
[321963470,1712652641921,-2412.32,0.00035616,2]
[321963471,1712652641930,-500.0,0.00035616,2]
[321963472,1712652641939,-500.0,0.00035616,2]
[321963473,1712652641948,-764.71,0.00035616,2]
[321963474,1712652641957,-504.48504271,0.00035616,2]
[321963475,1712652641966,-500.0,0.00035616,2]
[321963476,1712652641975,-240.0912655,0.00035616,2]
[321963477,1712652641983,-500.0,0.00035616,2]
[321963478,1712652641992,-501.50341539,0.00035616,2]
[321963479,1712652642001,-500.0,0.00035616,2]
[321963480,1712652642009,-1785.73,0.00035616,2]
[321963481,1712652642019,-500.0,0.00035616,2]
[321963482,1712652642028,-500.63695796,0.00035616,2]
[321963483,1712652642037,-500.0,0.00035616,2]
[321963484,1712652642046,-500.0,0.00035616,2]
[321963485,1712652642055,-500.0,0.00035616,2]
[321963486,1712652642064,-500.0,0.00035616,2]
[321963487,1712652642073,-500.0,0.00035616,2]
[321963488,1712652642082,-500.0,0.00035616,2]
[321963489,1712652642091,-500.0,0.00035616,2]
[321963490,1712652642101,-4853.42,0.00035616,2]
[321963491,1712652642110,-500.0,0.00035616,2]
[321963492,1712652642119,-500.0,0.00035616,2]
[321963493,1712652642128,-501.15600288,0.00035616,2]
[321963494,1712652642137,-602.67,0.00035616,2]
[321963496,1712652642147,-500.0,0.00035616,2]
[321963497,1712652642156,-1860.5,0.00035616,2]
[321963498,1712652642165,-500.0,0.00035616,2]
[321963500,1712652642175,-500.0,0.00035616,2]
[321963501,1712652642184,-501.82630852,0.00035616,2]
[321963503,1712652642192,-500.0,0.00035616,2]
[321963505,1712652642201,-500.0,0.00035616,2]
[321963507,1712652642210,-500.0,0.00035616,2]
[321963508,1712652642220,-500.0,0.00035616,2]
[321963510,1712652642229,-500.0,0.00035616,2]
[321963513,1712652642239,-218.96078063,0.00035671,4]
[321963516,1712652642248,-500.0,0.00035671,5]
[321963517,1712652642258,-500.0,0.00035671,5]
[321963520,1712652642269,-500.0,0.00035672,5]
[321963522,1712652642278,-500.0,0.00035672,5]
[321963525,1712652642287,-504.42821858,0.00035672,5]